[Event "FIDE Women World-chT-KO 2021"]
[Site "Sitges"]
[Date "2021.10.01"]
[Round "2.1"]
[White "Javakhishvili, Lela"]
[Black "Kulkarni Bhakti"]
[Result "1-0"]
[ECO "E16"]
[WhiteElo "2465"]
[BlackElo "2388"]
[Annotator "ChessBase"]
[PlyCount "189"]
[EventDate "2021.09.30"]
[EventType "team-tourn"]
[EventCountry "ESP"]
[SourceTitle "playchess.com"]
[Source "ChessBase"]
[SourceQuality "1"]
[WhiteTeam "Georgia"]
[BlackTeam "India"]
[WhiteTeamCountry "GEO"]
[BlackTeamCountry "IND"]
[TimeControl "2700+10"]

1. d4 {[%emt 0:00:03]} Nf6 {[%emt 0:00:15]} 2. c4 {[%emt 0:00:03]} e6 {[%emt 0:
00:14]} 3. Nf3 {[%emt 0:00:04]} Bb4+ {[%emt 0:00:07]} 4. Bd2 {[%emt 0:00:03]}
Qe7 {[%emt 0:00:04]} 5. Nc3 {[%emt 0:00:22]} Bxc3 {[%emt 0:01:58]} 6. Bxc3 {
[%emt 0:00:01]} Ne4 {[%emt 0:00:04]} 7. Rc1 {[%emt 0:00:30]} O-O {[%emt 0:01:
00]} 8. g3 {[%emt 0:00:21]} Nxc3 {[%emt 0:02:00]} 9. Rxc3 {[%emt 0:00:03]} d6 {
[%emt 0:00:17]} 10. Bg2 {[%emt 0:00:40]} e5 {[%emt 0:00:41]} 11. O-O {[%emt 0:
00:54]} Nc6 {[%emt 0:02:07]} 12. d5 {[%emt 0:00:57]} Nb8 {[%emt 0:00:44]} 13.
e4 {[%emt 0:01:02]} f5 {[%emt 0:00:43]} 14. exf5 {[%emt 0:00:17]} Bxf5 {
[%emt 0:00:06]} 15. c5 {[%emt 0:04:58]} Na6 {[%emt 0:02:00]} 16. cxd6 {[%emt 0:
01:11]} cxd6 {[%emt 0:00:38]} 17. Nh4 {[%emt 0:01:41]} Bd7 {[%emt 0:01:59]} 18.
Qb3 {[%emt 0:00:41]} Rab8 {[%emt 0:06:26]} 19. a3 {[%emt 0:01:46]} b5 {[%emt 0:
02:42]} 20. Rfc1 {[%emt 0:03:22]} b4 {[%emt 0:03:02]} 21. axb4 {[%emt 0:02:42]}
Rxb4 {[%emt 0:04:40]} 22. Qa2 {[%emt 0:00:02]} Ra4 {[%emt 0:00:44]} 23. Ra3 {
[%emt 0:00:09]} Rxa3 {[%emt 0:00:18]} 24. Qxa3 {[%emt 0:00:06]} Bb5 {[%emt 0:
00:54]} 25. Qa5 {[%emt 0:02:22]} Qb7 {[%emt 0:03:48]} 26. Rc3 {[%emt 0:07:07]}
Bd7 {[%emt 0:03:21]} 27. Bf1 {[%emt 0:02:39]} Qxb2 {[%emt 0:00:25]} 28. Rf3 {
[%emt 0:00:01]} Nc5 {[%emt 0:01:02]} 29. Qxa7 {[%emt 0:01:38]} Qb7 {[%emt 0:01:
42]} 30. Qxb7 {[%emt 0:01:59]} Nxb7 {[%emt 0:00:01]} 31. Rb3 {[%emt 0:00:38]}
Nc5 {[%emt 0:00:22]} 32. Rb6 {[%emt 0:00:04]} Rf6 {[%emt 0:00:20]} 33. Ng2 {
[%emt 0:00:54]} Na4 {[%emt 0:03:28]} 34. Rb4 {[%emt 0:00:54]} Nc5 {[%emt 0:00:
12]} 35. Ne3 {[%emt 0:00:22]} Kf7 {[%emt 0:00:02]} 36. h4 {[%emt 0:00:38]} Ke7
{[%emt 0:00:02]} 37. Bb5 {[%emt 0:02:49]} Bc8 {[%emt 0:00:18]} 38. Be2 {
[%emt 0:00:36]} Kd8 {[%emt 0:00:09]} 39. Kg2 {[%emt 0:03:06]} Kc7 {[%emt 0:00:
03]} 40. f4 {[%emt 0:00:55]} exf4 {[%emt 0:00:14]} 41. Rxf4 {[%emt 0:00:05]}
Rxf4 {[%emt 0:00:05]} 42. gxf4 {[%emt 0:00:01]} Kd8 {[%emt 0:00:02]} 43. Kf3 {
[%emt 0:00:28]} Ke7 {[%emt 0:00:04]} 44. f5 {[%emt 0:00:11]} Bb7 {[%emt 0:00:
32]} 45. Kf4 {[%emt 0:00:06]} Nd7 {[%emt 0:00:09]} 46. Ke4 {[%emt 0:00:51]} Ne5
{[%emt 0:00:36]} 47. Kf4 {[%emt 0:00:25]} Kf6 {[%emt 0:00:09]} 48. Ke4 {
[%emt 0:00:06]} Nd7 {[%emt 0:00:26]} 49. Ng4+ {[%emt 0:00:10]} Ke7 {[%emt 0:00:
06]} 50. Ne3 {[%emt 0:00:02]} Ne5 {[%emt 0:00:19]} 51. Kf4 {[%emt 0:00:37]} Kf6
{[%emt 0:00:04]} 52. Ke4 {[%emt 0:00:26]} Bc8 {[%emt 0:00:13]} 53. Bb5 {
[%emt 0:00:33]} Nf7 {[%emt 0:00:21]} 54. Ng4+ {[%emt 0:00:19]} Ke7 {[%emt 0:00:
01]} 55. Kf4 {[%emt 0:00:09]} Nd8 {[%emt 0:00:33]} 56. Bd3 {[%emt 0:00:12]} Kf7
{[%emt 0:00:09]} 57. Bb5 {[%emt 0:00:18]} Ke7 {[%emt 0:00:05]} 58. Bd3 {
[%emt 0:00:20]} Kf7 {[%emt 0:00:15]} 59. h5 {[%emt 0:00:36]} h6 {[%emt 0:00:12]
} 60. Bb5 {[%emt 0:00:14]} Bb7 {[%emt 0:00:09]} 61. Bc4 {[%emt 0:00:04]} Bc8 {
[%emt 0:00:11]} 62. Bd3 {[%emt 0:00:09]} Bb7 {[%emt 0:00:09]} 63. Be4 {[%emt 0:
00:03]} Bc8 {[%emt 0:00:06]} 64. Bd3 {[%emt 0:00:19]} Bb7 {[%emt 0:00:02]} 65.
Bc4 {[%emt 0:00:01]} Bc8 {[%emt 0:00:02]} 66. Bb3 {[%emt 0:00:01]} Nb7 {
[%emt 0:00:05]} 67. Bc4 {[%emt 0:00:19]} Nc5 {[%emt 0:00:07]} 68. Bb5 {[%emt 0:
00:06]} Nb3 69. Bd3 {[%emt 0:00:17]} Nd4 {[%emt 0:00:27]} 70. Ne3 {[%emt 0:00:
09]} Bb7 {[%emt 0:00:08]} 71. Bc4 {[%emt 0:00:07]} Kf6 {[%emt 0:00:36]} 72. Ke4
{[%emt 0:00:01]} Kg5 {[%emt 0:00:17]} 73. Kxd4 {[%emt 0:00:02]} Kxh5 {[%emt 0:
00:02]} 74. Be2+ {[%emt 0:00:06]} Kg5 {[%emt 0:00:09]} 75. Bd3 {[%emt 0:00:07]}
h5 {[%emt 0:00:07]} 76. Nc4 {[%emt 0:00:01]} Ba6 {[%emt 0:01:09]} 77. Nxd6 {
[%emt 0:00:16]} Bxd3 {[%emt 0:00:02]} 78. Kxd3 {[%emt 0:00:01]} Kf4 {[%emt 0:
00:03]} 79. Kd4 {[%emt 0:00:04]} h4 80. Ne4 {[%emt 0:00:04]} Kxf5 {[%emt 0:00:
04]} 81. d6 {[%emt 0:00:27]} Ke6 {[%emt 0:00:01]} 82. Kc5 {[%emt 0:00:02]} Kd7
{[%emt 0:00:10]} 83. Kd5 {[%emt 0:00:04]} h3 {[%emt 0:00:14]} 84. Nc5+ {
[%emt 0:00:09]} Kd8 {[%emt 0:00:07]} 85. Ne6+ {[%emt 0:01:03]} Kd7 {[%emt 0:00:
03]} 86. Nc5+ {[%emt 0:00:11]} Kd8 {[%emt 0:00:01]} 87. Ne4 {[%emt 0:00:15]}
Kd7 {[%emt 0:00:18]} 88. Ke5 {[%emt 0:00:10]} h2 {[%emt 0:00:52]} 89. Ng3 {
[%emt 0:00:01]} g6 {[%emt 0:00:18]} 90. Nh1 {[%emt 0:00:02]} g5 {[%emt 0:00:21]
} 91. Ng3 {[%emt 0:00:07]} Kd8 {[%emt 0:00:09]} 92. Ke6 {[%emt 0:00:03]} Ke8 {
[%emt 0:00:01]} 93. d7+ {[%emt 0:00:23]} Kd8 {[%emt 0:00:01]} 94. Nh1 {[%emt 0:
00:02]} g4 {[%emt 0:00:03]} 95. Ng3 {[%emt 0:00:02]} 1-0

[Event "FIDE Women World-chT-KO 2021"]
[Site "Sitges"]
[Date "2021.10.01"]
[Round "2.1"]
[White "Vaishali R"]
[Black "Batsiashvili, Nino"]
[Result "1/2-1/2"]
[ECO "C70"]
[WhiteElo "2414"]
[BlackElo "2486"]
[Annotator "ChessBase"]
[PlyCount "122"]
[EventDate "2021.09.30"]
[EventType "team-tourn"]
[EventCountry "ESP"]
[SourceTitle "playchess.com"]
[Source "ChessBase"]
[SourceQuality "1"]
[WhiteTeam "India"]
[BlackTeam "Georgia"]
[WhiteTeamCountry "IND"]
[BlackTeamCountry "GEO"]
[TimeControl "2700+10"]

1. e4 {[%emt 0:00:17]} e5 {[%emt 0:00:01]} 2. Nf3 {[%emt 0:00:02]} Nc6 {
[%emt 0:00:00]} 3. Bb5 {[%emt 0:00:03]} a6 {[%emt 0:00:01]} 4. Ba4 {[%emt 0:00:
02]} Bc5 {[%emt 0:00:01]} 5. c3 {[%emt 0:00:09]} Nge7 {[%emt 0:00:04]} 6. O-O {
[%emt 0:00:03]} Ba7 {[%emt 0:00:06]} 7. d4 {[%emt 0:00:02]} Ng6 {[%emt 0:00:04]
} 8. Bg5 {[%emt 0:00:05]} f6 {[%emt 0:00:08]} 9. Be3 {[%emt 0:00:03]} O-O {
[%emt 0:00:07]} 10. Nbd2 {[%emt 0:00:05]} d6 {[%emt 0:00:10]} 11. Re1 {[%emt 0:
00:31]} Kh8 {[%emt 0:00:24]} 12. h3 Bd7 {[%emt 0:00:04]} 13. Bc2 {[%emt 0:03:
22]} exd4 {[%emt 0:03:36]} 14. Nxd4 {[%emt 0:01:26]} Nxd4 {[%emt 0:00:10]} 15.
Bxd4 {[%emt 0:02:07]} Qe8 {[%emt 0:02:32]} 16. Nf1 {[%emt 0:06:18]} c5 {
[%emt 0:01:51]} 17. Be3 {[%emt 0:00:07]} Qe5 {[%emt 0:00:08]} 18. Qd2 {[%emt 0:
03:06]} Rad8 {[%emt 0:03:45]} 19. f4 {[%emt 0:01:31]} Qe8 {[%emt 0:00:01]} 20.
Ng3 {[%emt 0:03:40]} Bb8 {[%emt 0:00:27]} 21. Rad1 {[%emt 0:04:10]} Bc6 {
[%emt 0:00:54]} 22. Bb3 {[%emt 0:00:24]} Ne7 {[%emt 0:04:40]} 23. Qf2 {[%emt 0:
01:19]} b6 {[%emt 0:01:50]} 24. Rd2 {[%emt 0:05:58]} a5 {[%emt 0:01:43]} 25.
Bd5 {[%emt 0:01:23]} Qd7 {[%emt 0:00:43]} 26. f5 {[%emt 0:00:27]} b5 {[%emt 0:
02:46]} 27. Rf1 {[%emt 0:02:33]} Qb7 {[%emt 0:00:18]} 28. Qf3 {[%emt 0:00:28]}
c4 {[%emt 0:00:19]} 29. Nh5 {[%emt 0:00:44]} Rde8 {[%emt 0:02:33]} 30. Kh1 {
[%emt 0:02:22]} Nxd5 {[%emt 0:02:20]} 31. exd5 {[%emt 0:00:03]} Bxd5 {[%emt 0:
06:58]} 32. Qxd5 {[%emt 0:03:37]} Qxd5 {[%emt 0:00:01]} 33. Rxd5 {[%emt 0:00:
01]} Rxe3 {[%emt 0:00:01]} 34. Rxb5 {[%emt 0:00:02]} a4 {[%emt 0:00:19]} 35.
Rb7 {[%emt 0:00:31]} d5 {[%emt 0:00:15]} 36. Rxg7 {[%emt 0:01:36]} a3 {[%emt 0:
01:44]} 37. bxa3 {[%emt 0:00:02]} Rxc3 {[%emt 0:02:39]} 38. Rb1 {[%emt 0:00:18]
} Bf4 {[%emt 0:01:38]} 39. Rd7 {[%emt 0:01:07]} Rc1+ {[%emt 0:00:02]} 40. Rxc1
{[%emt 0:00:02]} Bxc1 {[%emt 0:00:01]} 41. Rxd5 {[%emt 0:00:33]} Rc8 {[%emt 0:
00:37]} 42. Nxf6 {[%emt 0:00:11]} Bb2 {[%emt 0:00:10]} 43. Ne4 {[%emt 0:00:47]}
c3 {[%emt 0:00:02]} 44. Nxc3 {[%emt 0:00:34]} Rxc3 {[%emt 0:00:20]} 45. a4 {
[%emt 0:00:05]} Ra3 {[%emt 0:00:35]} 46. Ra5 {[%emt 0:00:08]} Rxa2 {[%emt 0:00:
14]} 47. Kh2 {[%emt 0:00:05]} Kg7 {[%emt 0:00:11]} 48. Kg3 {[%emt 0:00:06]} Bd4
{[%emt 0:00:31]} 49. Kf3 {[%emt 0:00:08]} Kf6 {[%emt 0:00:19]} 50. Ke4 {
[%emt 0:00:18]} Bg1 {[%emt 0:01:45]} 51. g3 {[%emt 0:00:14]} Ra3 {[%emt 0:01:
02]} 52. Ra6+ {[%emt 0:00:21]} Kf7 {[%emt 0:01:04]} 53. g4 {[%emt 0:00:08]}
Rxh3 {[%emt 0:00:17]} 54. g5 {[%emt 0:00:01]} Rh4+ {[%emt 0:00:57]} 55. Kd5 {
[%emt 0:00:10]} Be3 {[%emt 0:00:06]} 56. Rh6 {[%emt 0:00:15]} Bxg5 {[%emt 0:00:
20]} 57. Rxh4 {[%emt 0:00:02]} Bxh4 {[%emt 0:00:01]} 58. Ke4 {[%emt 0:00:06]}
Be1 {[%emt 0:00:05]} 59. Kf3 {[%emt 0:00:02]} Kf6 {[%emt 0:00:01]} 60. Kg2 {
[%emt 0:00:01]} Kxf5 {[%emt 0:00:02]} 61. Kh1 {[%emt 0:00:01]} Ke5 1/2-1/2

[Event "FIDE Women World-chT-KO 2021"]
[Site "Sitges"]
[Date "2021.10.01"]
[Round "2.1"]
[White "Gomes, Mary Ann"]
[Black "Melia, Salome"]
[Result "1-0"]
[ECO "A37"]
[WhiteElo "2354"]
[BlackElo "2371"]
[Annotator "NA"]
[PlyCount "109"]
[EventDate "2021.09.30"]
[EventType "team-tourn"]
[EventCountry "ESP"]
[SourceTitle "playchess.com"]
[Source "ChessBase"]
[SourceQuality "1"]
[WhiteTeam "India"]
[BlackTeam "Georgia"]
[WhiteTeamCountry "IND"]
[BlackTeamCountry "GEO"]
[TimeControl "2700+10"]

1. Nf3 {[%emt 0:00:12]} c5 {[%emt 0:00:02]} 2. c4 {[%emt 0:00:04]} Nc6 {
[%emt 0:00:06]} 3. Nc3 {[%emt 0:00:03]} g6 {[%emt 0:00:06]} 4. g3 {[%emt 0:00:
03]} Bg7 {[%emt 0:00:05]} 5. Bg2 {[%emt 0:00:05]} e6 {[%emt 0:00:28]} 6. d4 {
[%emt 0:00:50]} Nxd4 {[%emt 0:00:26]} 7. Nxd4 {[%emt 0:00:02]} cxd4 {[%emt 0:
00:02]} 8. Nb5 {[%emt 0:00:02]} Qb6 {[%emt 0:02:00]} 9. e3 {[%emt 0:00:11]} d5
{[%emt 0:03:27]} 10. Nxd4 {[%emt 0:03:14]} Ne7 {[%emt 0:04:36]} 11. O-O {
[%emt 0:02:28]} O-O {[%emt 0:01:28]} 12. cxd5 {[%emt 0:08:57]} Nxd5 {[%emt 0:
00:03]} 13. Nb3 {[%emt 0:01:28]} Nb4 {[%emt 0:07:35]} 14. e4 {[%emt 0:03:59]}
Rd8 {[%emt 0:00:41]} 15. Qf3 {[%emt 0:04:17]} Nc2 {[%emt 0:01:16]} 16. Rb1 $1 {
[%emt 0:07:02]} e5 {[%emt 0:01:42]} 17. Bg5 Re8 {[%emt 0:02:00]} 18. Rfc1 {
[%emt 0:03:34]} Nd4 {[%emt 0:01:09]} 19. Nxd4 {[%emt 0:00:02]} exd4 {[%emt 0:
00:05]} 20. Bf4 {[%emt 0:00:04]} Be6 {[%emt 0:01:34]} 21. Bc7 {[%emt 0:00:18]}
Qb5 {[%emt 0:08:00]} 22. e5 {[%emt 0:03:32]} Bxa2 {[%emt 0:03:37]} 23. Ra1 $14
{[%emt 0:00:51]} Bh6 {[%emt 0:02:59]} 24. Rd1 {[%emt 0:01:58]} Rac8 {[%emt 0:
01:21]} 25. Bd6 {[%emt 0:00:40]} Bb3 {[%emt 0:03:50]} 26. Rxd4 {[%emt 0:00:14]}
a5 {[%emt 0:00:32]} 27. Qxb7 {[%emt 0:01:23]} Qxb7 {[%emt 0:00:04]} 28. Bxb7 {
[%emt 0:00:02]} Rc2 {[%emt 0:00:02]} 29. Rxa5 {[%emt 0:00:48]} Rxb2 {[%emt 0:
00:24]} 30. Rb5 {[%emt 0:01:27]} Rb1+ {[%emt 0:00:12]} 31. Kg2 {[%emt 0:00:02]}
Bc2 {[%emt 0:00:13]} 32. Rxb1 {[%emt 0:00:19]} Bxb1 {[%emt 0:00:01]} 33. Bd5 {
[%emt 0:00:03]} Bf5 {[%emt 0:00:12]} 34. Ra4 {[%emt 0:00:22]} Bg7 {[%emt 0:00:
18]} 35. f4 {[%emt 0:00:08]} h5 {[%emt 0:00:04]} 36. Ra7 {[%emt 0:00:39]} Be6 {
[%emt 0:00:03]} 37. Bxe6 {[%emt 0:00:15]} fxe6 {[%emt 0:00:15]} 38. Kh3 {
[%emt 0:00:25]} Kh7 {[%emt 0:00:19]} 39. Be7 {[%emt 0:00:03]} Kg8 40. Kh4 {
[%emt 0:00:18]} Bh6 {[%emt 0:00:09]} 41. Bg5 {[%emt 0:00:38]} Bg7 {[%emt 0:00:
03]} 42. Bf6 {[%emt 0:00:13]} Bh6 {[%emt 0:00:02]} 43. h3 {[%emt 0:00:06]} Rc8
{[%emt 0:00:20]} 44. Re7 {[%emt 0:00:18]} Rc6 {[%emt 0:00:12]} 45. Re8+ {
[%emt 0:00:02]} Kf7 {[%emt 0:00:04]} 46. Rh8 {[%emt 0:00:04]} Bf8 {[%emt 0:00:
29]} 47. g4 {[%emt 0:00:31]} hxg4 {[%emt 0:00:12]} 48. hxg4 {[%emt 0:00:02]}
Rc3 {[%emt 0:00:09]} 49. Kg5 {[%emt 0:00:06]} Rg3 {[%emt 0:00:05]} 50. Rh7+ {
[%emt 0:00:10]} Ke8 {[%emt 0:00:10]} 51. Rb7 Rg2 52. Kxg6 {[%emt 0:00:51]}
Rxg4+ {[%emt 0:00:11]} 53. Bg5 {[%emt 0:00:01]} Rg2 {[%emt 0:00:23]} 54. Rb8+ {
[%emt 0:00:03]} Kd7 {[%emt 0:00:12]} 55. Rxf8 {[%emt 0:00:02]} 1-0

[Event "FIDE Women World-chT-KO 2021"]
[Site "Sitges"]
[Date "2021.10.01"]
[Round "2.1"]
[White "Osmak, Iulija"]
[Black "Kashlinskaya, Alina"]
[Result "0-1"]
[ECO "E10"]
[WhiteElo "2302"]
[BlackElo "2493"]
[Annotator "ChessBase"]
[PlyCount "124"]
[EventDate "2021.09.30"]
[EventType "team-tourn"]
[EventCountry "ESP"]
[SourceTitle "playchess.com"]
[Source "ChessBase"]
[SourceQuality "1"]
[BlackTeam "Russia"]
[BlackTeamCountry "RUS"]
[TimeControl "2700+10"]

1. d4 {[%emt 0:00:01]} Nf6 {[%emt 0:00:02]} 2. c4 {[%emt 0:00:03]} e6 {[%emt 0:
00:04]} 3. Nf3 {[%emt 0:00:05]} d5 {[%emt 0:00:04]} 4. g3 {[%emt 0:00:04]} Bb4+
{[%emt 0:01:43]} 5. Bd2 {[%emt 0:00:05]} Be7 {[%emt 0:00:05]} 6. Bg2 {[%emt 0:
00:06]} O-O {[%emt 0:00:04]} 7. O-O {[%emt 0:01:01]} Nbd7 {[%emt 0:00:04]} 8.
Qc2 {[%emt 0:00:14]} c6 {[%emt 0:00:10]} 9. Rd1 {[%emt 0:00:13]} b6 {[%emt 0:
01:17]} 10. Bf4 {[%emt 0:00:22]} Bb7 {[%emt 0:02:26]} 11. Ne5 {[%emt 0:00:14]}
Nh5 {[%emt 0:00:35]} 12. Bc1 {[%emt 0:00:06]} Nhf6 {[%emt 0:00:11]} 13. Bf4 {
[%emt 0:00:30]} Nh5 {[%emt 0:00:12]} 14. Bc1 {[%emt 0:00:02]} Nhf6 {[%emt 0:00:
03]} 15. cxd5 {[%emt 0:00:02]} cxd5 {[%emt 0:00:05]} 16. Nc6 {[%emt 0:00:05]}
Bxc6 {[%emt 0:01:59]} 17. Qxc6 {[%emt 0:00:11]} Rc8 {[%emt 0:00:05]} 18. Qa4 {
[%emt 0:02:05]} Qc7 {[%emt 0:04:10]} 19. Nc3 {[%emt 0:00:28]} Qb7 {[%emt 0:00:
25]} 20. Bf4 {[%emt 0:05:35]} a6 {[%emt 0:02:36]} 21. Qb3 {[%emt 0:02:39]} Nh5
{[%emt 0:03:35]} 22. Bd2 {[%emt 0:01:33]} Nhf6 {[%emt 0:00:05]} 23. Rac1 {
[%emt 0:05:45]} Bd6 {[%emt 0:02:16]} 24. Re1 {[%emt 0:04:03]} Qb8 {[%emt 0:04:
05]} 25. Qa4 {[%emt 0:06:22]} Rc4 {[%emt 0:00:47]} 26. Qxa6 {[%emt 0:00:44]}
Rxd4 {[%emt 0:00:17]} 27. Rc2 {[%emt 0:03:03]} Rc4 {[%emt 0:05:31]} 28. e3 {
[%emt 0:03:00]} b5 {[%emt 0:00:14]} 29. b3 {[%emt 0:05:22]} Nc5 {[%emt 0:01:24]
} 30. Qa5 {[%emt 0:00:17]} Bc7 {[%emt 0:00:20]} 31. Qa3 {[%emt 0:01:24]} b4 {
[%emt 0:00:06]} 32. Qc1 {[%emt 0:00:16]} Nd3 {[%emt 0:01:41]} 33. Qd1 {[%emt 0:
00:31]} Nxe1 {[%emt 0:00:43]} 34. Bxe1 {[%emt 0:00:10]} Rxc3 {[%emt 0:00:48]}
35. Bxc3 {[%emt 0:00:02]} bxc3 {[%emt 0:00:01]} 36. Rxc3 {[%emt 0:00:01]} Be5 {
[%emt 0:00:36]} 37. Rc6 {[%emt 0:00:17]} Rc8 {[%emt 0:00:59]} 38. Qc2 {[%emt 0:
00:02]} Rxc6 {[%emt 0:00:06]} 39. Qxc6 {[%emt 0:00:01]} h5 {[%emt 0:00:10]} 40.
Bf1 {[%emt 0:00:12]} g6 {[%emt 0:02:03]} 41. Bb5 {[%emt 0:01:36]} Qa7 {[%emt 0:
00:26]} 42. a4 {[%emt 0:00:27]} Qa5 {[%emt 0:00:38]} 43. Qc1 {[%emt 0:00:39]}
Qb4 {[%emt 0:00:02]} 44. Qc2 {[%emt 0:00:18]} Kg7 {[%emt 0:01:24]} 45. Bd3 {
[%emt 0:00:08]} h4 {[%emt 0:00:24]} 46. Kg2 {[%emt 0:00:20]} hxg3 {[%emt 0:00:
32]} 47. hxg3 {[%emt 0:00:02]} Nd7 {[%emt 0:00:03]} 48. Qd1 {[%emt 0:01:32]}
Nc5 {[%emt 0:00:26]} 49. Bc2 {[%emt 0:00:01]} Qc3 {[%emt 0:00:12]} 50. Qb1 {
[%emt 0:00:21]} Na6 {[%emt 0:00:15]} 51. Bd1 {[%emt 0:00:18]} Nb4 {[%emt 0:00:
02]} 52. Be2 {[%emt 0:00:18]} Bc7 {[%emt 0:00:58]} 53. Qd1 {[%emt 0:00:18]} e5
{[%emt 0:00:28]} 54. Bb5 {[%emt 0:00:19]} e4 {[%emt 0:00:58]} 55. Be8 {[%emt 0:
00:11]} Nd3 {[%emt 0:00:24]} 56. Bb5 {[%emt 0:00:14]} Bb6 {[%emt 0:00:42]} 57.
Kf1 {[%emt 0:00:11]} d4 {[%emt 0:00:20]} 58. exd4 {[%emt 0:00:03]} Qxd4 {
[%emt 0:00:17]} 59. Qe2 {[%emt 0:00:07]} Qa1+ {[%emt 0:00:50]} 60. Kg2 {
[%emt 0:00:01]} Bxf2 {[%emt 0:00:28]} 61. Qxe4 {[%emt 0:00:18]} Qg1+ {[%emt 0:
00:03]} 62. Kf3 {[%emt 0:00:04]} Qh1+ {[%emt 0:00:00]} 0-1

[Event "FIDE Women World-chT-KO 2021"]
[Site "Sitges"]
[Date "2021.10.01"]
[Round "2.2"]
[White "Muzychuk, Anna"]
[Black "Goryachkina, Aleksandra"]
[Result "0-1"]
[ECO "C45"]
[WhiteElo "2534"]
[BlackElo "2608"]
[Annotator "ChessBase"]
[PlyCount "122"]
[EventDate "2021.09.30"]
[EventType "team-tourn"]
[EventCountry "ESP"]
[SourceTitle "playchess.com"]
[Source "ChessBase"]
[SourceQuality "1"]
[WhiteTeam "Ukraine"]
[BlackTeam "Russia"]
[WhiteTeamCountry "UKR"]
[BlackTeamCountry "RUS"]
[TimeControl "2700+10"]

1. e4 {[%emt 0:00:02]} e5 {[%emt 0:00:04]} 2. Nf3 {[%emt 0:00:03]} Nc6 {
[%emt 0:00:02]} 3. d4 {[%emt 0:00:02]} exd4 {[%emt 0:00:09]} 4. Nxd4 {[%emt 0:
00:02]} Nf6 {[%emt 0:00:28]} 5. Nxc6 {[%emt 0:00:03]} bxc6 {[%emt 0:00:07]} 6.
e5 {[%emt 0:00:02]} Qe7 {[%emt 0:00:16]} 7. Qe2 {[%emt 0:00:01]} Nd5 {[%emt 0:
00:03]} 8. g3 {[%emt 0:00:05]} a5 {[%emt 0:04:16]} 9. Bg2 {[%emt 0:07:41]} Nb6
{[%emt 0:00:37]} 10. b3 {[%emt 0:01:19]} a4 {[%emt 0:01:06]} 11. Ba3 {[%emt 0:
03:40]} Qe6 {[%emt 0:02:24]} 12. Bxf8 {[%emt 0:02:19]} Rxf8 {[%emt 0:01:39]}
13. Nc3 {[%emt 0:04:56]} axb3 {[%emt 0:02:23]} 14. cxb3 {[%emt 0:00:02]} Ba6 {
[%emt 0:02:32]} 15. Qe4 {[%emt 0:02:37]} O-O-O {[%emt 0:05:12]} 16. O-O-O {
[%emt 0:00:13]} f6 {[%emt 0:00:27]} 17. f4 {[%emt 0:01:03]} fxe5 {[%emt 0:00:
58]} 18. Qxe5 {[%emt 0:00:02]} Qxe5 {[%emt 0:02:29]} 19. fxe5 {[%emt 0:00:01]}
Rde8 {[%emt 0:00:32]} 20. Rhe1 {[%emt 0:00:07]} Rf5 {[%emt 0:00:31]} 21. e6 {
[%emt 0:00:14]} Rxe6 {[%emt 0:00:36]} 22. Rxe6 {[%emt 0:00:05]} dxe6 {[%emt 0:
00:01]} 23. Be4 {[%emt 0:02:03]} Rh5 {[%emt 0:01:24]} 24. Rd2 {[%emt 0:02:16]}
h6 {[%emt 0:01:07]} 25. Rf2 {[%emt 0:02:55]} Kb7 {[%emt 0:02:32]} 26. Kd2 {
[%emt 0:01:48]} Nd5 {[%emt 0:01:28]} 27. Bc2 {[%emt 0:03:59]} Nxc3 {[%emt 0:03:
00]} 28. Kxc3 {[%emt 0:00:01]} Kb6 {[%emt 0:00:22]} 29. Be4 {[%emt 0:01:54]} c5
{[%emt 0:00:37]} 30. Rf8 {[%emt 0:06:10]} c6 {[%emt 0:01:29]} 31. Rf2 {[%emt 0:
00:37]} Re5 {[%emt 0:00:18]} 32. Bg6 {[%emt 0:00:25]} Re1 {[%emt 0:00:49]} 33.
Bf7 {[%emt 0:01:03]} c4 {[%emt 0:02:55]} 34. bxc4 {[%emt 0:01:38]} Kc5 {
[%emt 0:00:07]} 35. Rf4 {[%emt 0:00:26]} g5 {[%emt 0:00:50]} 36. Rg4 {[%emt 0:
00:32]} Re3+ {[%emt 0:02:37]} 37. Kd2 {[%emt 0:00:01]} Ra3 {[%emt 0:00:08]} 38.
h4 {[%emt 0:00:20]} Bxc4 {[%emt 0:00:41]} 39. hxg5 {[%emt 0:00:10]} hxg5 {
[%emt 0:00:02]} 40. Rxg5+ {[%emt 0:00:04]} Kd6 {[%emt 0:00:09]} 41. Rg8 {
[%emt 0:00:25]} Rxa2+ {[%emt 0:00:07]} 42. Ke3 {[%emt 0:00:02]} Ke5 {[%emt 0:
00:20]} 43. Rg5+ {[%emt 0:00:20]} Kf6 {[%emt 0:00:21]} 44. Rc5 {[%emt 0:00:01]}
Ra3+ {[%emt 0:00:49]} 45. Kf2 {[%emt 0:00:18]} Bd5 {[%emt 0:00:13]} 46. Bh5 {
[%emt 0:00:02]} Ke5 {[%emt 0:00:06]} 47. Rc1 {[%emt 0:00:17]} Ra2+ {[%emt 0:00:
55]} 48. Be2 {[%emt 0:00:02]} Ke4 {[%emt 0:00:15]} 49. g4 {[%emt 0:00:24]} Kf4
{[%emt 0:00:05]} 50. Rc3 {[%emt 0:00:08]} e5 {[%emt 0:00:24]} 51. Ke1 {[%emt 0:
00:11]} e4 {[%emt 0:00:13]} 52. Kf2 {[%emt 0:00:03]} Rb2 {[%emt 0:00:35]} 53.
Ke1 {[%emt 0:00:27]} e3 {[%emt 0:00:26]} 54. Rc1 {[%emt 0:00:06]} Rb8 {[%emt 0:
00:29]} 55. Kd1 {[%emt 0:00:16]} Be4 {[%emt 0:00:08]} 56. Rc5 {[%emt 0:00:11]}
Rd8+ {[%emt 0:00:13]} 57. Ke1 {[%emt 0:00:04]} Rh8 {[%emt 0:00:09]} 58. Rh5 {
[%emt 0:00:10]} Ra8 {[%emt 0:00:04]} 59. Rc5 {[%emt 0:00:19]} Ra1+ {[%emt 0:00:
13]} 60. Bd1 {[%emt 0:00:00]} Bd3 {[%emt 0:00:28]} 61. Rc3 {[%emt 0:00:14]} Bb5
{[%emt 0:00:13]} 0-1